{"text_format":"1","workbook":"xlsx","n_sheets":4,"sheets":["Formato de PR","Claves","Macros","Catalogos"],"not_rendered":{"charts":0,"images":1,"macros":1,"external_links":0,"defined_names":3,"comments":0,"pivot_tables":0},"unopened":[],"bounds":{"document_bytes":16777216,"sheet_cells":100000,"rows_first":2000,"rows_last":500,"rows_between":2000,"halvings":0,"cell_chars":16384,"cell_head_chars":4096},"cells_cut":0,"cells_raw":0,"read":"whole","date_system":"1900"}

{"sheet":"Formato de PR","index":0,"n_rows":86,"n_cols":45,"rows_kept":86,"cut":false,"hidden":false,"merged":[[42,27,42,30],[28,6,28,33],[30,6,30,21],[34,1,34,7],[34,9,34,14],[37,1,37,16],[37,18,37,33],[42,1,42,7],[42,10,42,25],[39,1,39,16],[35,1,35,7],[5,1,5,6],[5,7,5,20],[23,11,23,33],[18,7,18,15],[26,4,26,16],[26,22,26,33],[9,7,9,33],[11,1,11,15],[11,17,11,33],[20,6,20,13],[20,19,20,33],[13,0,13,2],[13,25,13,29],[14,25,14,29],[13,6,13,13],[1,0,1,36],[78,2,78,33],[79,8,79,27],[71,2,71,20],[16,6,16,17],[30,26,30,33],[32,4,32,33],[16,25,16,33],[72,2,72,20],[71,24,71,33],[72,24,72,33],[65,1,65,34],[66,1,66,34],[48,1,48,33],[50,1,50,33],[3,0,3,34],[85,0,85,34],[56,0,56,34],[67,1,67,33],[45,1,45,33],[52,1,52,11],[53,1,53,8],[47,1,47,10],[68,1,68,33],[69,1,69,33]]}
[null,null,null,null,null,null,null,null,null,null,null,null,null,null,null,null,null,null,null,null,null,null,null,null,null,null,null,null,null,null,null,"PÁGINA 1 DE 2"]
["FORMATO DE IDENTIFICACIÓN DEL PROPIETARIO REAL"]
[]
["El presente formato (en adelante el “FORMATO”) debe ser completado por el Usuario (\"Comprador o Vendedor del proceso de Subastas\") o por el Representante Legal del Usuario Persona Moral que va celebrar un Contrato de Compra-Venta."]
[]
[null,"Persona que completa el Formato:",null,null,null,null,null,null,null,null,null,null,null,null,null,null,null,null,null,null,null,"*",null,null,null,null,null,null,null,null,null,null,null,null,null,null,null,null,null,null,null,null,null,null,"StateDesc"]
[]
["  Información del Propietario Real:"]
[]
["NOMBRE COMPLETO (sin abreviaciones):",null,null,null,null,null,null,null,null,null,null,null,null,null,null,null,null,null,null,null,null,null,null,null,null,null,null,null,null,null,null,null,null,null,"*"]
[]
[null,null,null,null,null,null,null,null,null,null,null,null,null,null,null,null,"*",null,null,null,null,null,null,null,null,null,null,null,null,null,null,null,null,null,"*"]
[null,"APELLIDO PATERNO",null,null,null,null,null,null,null,null,null,null,null,null,null,null,null,"APELLIDO MATERNO"]
["GENERO:",null,null,null,null,null,null,null,null,null,null,null,null,null,"*",null,null,"FECHA DE NACIMIENTO:",null,null,null,null,null,null,null,null,null,null,null,null,"*"]
[null,null,null,null,null,null,null,null,null,null,null,null,null,null,null,null,null,null,null,null,null,null,null,null,null,"DD / MM / AAAA"]
[]
["PAÍS DE NACIMIENTO:",null,null,null,null,null,null,null,null,null,null,null,null,null,null,null,null,null,"*",null,null,null,null,null,"NACIONALIDAD:",null,null,null,null,null,null,null,null,null,"*"]
[]
["ENTIDAD FEDERATIVA DE NACIMIENTO:",null,null,null,null,null,null,null,null,null,null,null,null,null,null,null,"*"]
[]
["RFC (con homoclave):",null,null,null,null,null,null,null,null,null,null,null,null,null,"*",null,null,"CURP:"]
[null,null,null,null,null,null,"[4 Letras] + AAMMDD + [3 Letras o numeros]",null,null,null,null,null,null,null,null,null,null,null,null,"(Cuando cuente con ella)"]
[]
["No. SERIE DE FIRMA ELECTRÓNICA AVANZADA:"]
[null,null,null,null,null,null,null,null,null,null,null,"(Cuando cuente con ella)"]
[]
["OCUPACIÓN:",null,null,null,null,null,null,null,null,null,null,null,null,null,null,null,null,"*",null,"PUESTO:",null,null,null,null,null,null,null,null,null,null,null,null,null,null,"*"]
[]
["GIRO DEL NEGOCIO:",null,null,null,null,null,null,null,null,null,null,null,null,null,null,null,null,null,null,null,null,null,null,null,null,null,null,null,null,null,null,null,null,null,"*"]
[]
["CORREO ELECTRÓNICO:",null,null,null,null,null,null,null,null,null,null,null,null,null,null,null,null,null,null,null,null,null,null,null,null,"TELEFONO(s):",null,null,null,null,null,null,null,null,"*"]
[]
["DOMICILIO",null,null,null,null,null,null,null,null,null,null,null,null,null,null,null,null,null,null,null,null,null,null,null,null,null,null,null,null,null,null,null,null,null,"*"]
[" (VER NOTA 1)"]
[null,null,null,null,null,null,null,null,"*"]
[null,"No. EXTERIOR",null,null,null,null,null,null,null,"No. INTERIOR (CUANDO CUENTE CON EL)"]
[]
[null,null,null,null,null,null,null,null,null,null,null,null,null,null,null,null,null,"*",null,null,null,null,null,null,null,null,null,null,null,null,null,null,null,null,"*"]
[null,"COLONIA",null,null,null,null,null,null,null,null,null,null,null,null,null,null,null,null,"DELEGACIÓN / MUNICIPIO"]
[null,null,null,null,null,null,null,null,null,null,null,null,null,null,null,null,null,"*"]
[null,"CIUDAD / POBLACIÓN"]
[]
[null,null,null,null,null,null,null,null,"*",null,null,null,null,null,null,null,null,null,null,null,null,null,null,null,null,null,"*",null,null,null,null,"*"]
[null,"ENTIDAD FEDERATIVA / ESTADO",null,null,null,null,null,null,null,null,"PAÍS",null,null,null,null,null,null,null,null,null,null,null,null,null,null,null,null,"CÓDIGO POSTAL"]
[]
[null,"NOTA 1: En caso de que el PROPIETARIO REAL tenga su lugar de residencia en el extranjero y, a la vez, cuente con domicilio en territorio nacional en donde pueda recibir correspondencia, es indispensable señalar a continuación dicho domicilio (Calle, número exterior, número interior en su caso, colonia, delegación o municipio, ciudad o población, entidad federativa o estado, código postal):"]
[]
[null,"DOMICILIO EN EL EXTRANJERO",null,null,null,null,null,null,null,null,null,null,null,null,null,null,null,null,null,null,null,null,null,null,null,null,null,null,null,null,null,null,null,null,null,null,null,null,null,null,null,null,null,null,"Morelos"]
[null,null,null,null,null,null,null,null,null,null,null,null,null,null,null,null,null,null,null,null,null,null,null,null,null,null,null,null,null,null,null,null,null,null,null,null,null,null,null,null,null,null,null,null,"Nayarit"]
[null,null,null,null,null,null,null,null,null,null,null,null,null,null,null,null,null,null,null,null,null,null,null,null,null,null,null,null,null,null,null,null,null,null,null,null,null,null,null,null,null,null,null,null,"Nuevo Leon"]
[null,null,null,null,null,null,null,null,null,null,null,null,null,null,null,null,null,null,null,null,null,null,null,null,null,null,null,null,null,null,null,null,null,null,null,null,null,null,null,null,null,null,null,null,"Oaxaca"]
[null,null,null,null,null,null,null,null,null,null,null,null,null,null,null,null,null,null,null,null,null,null,null,null,null,null,null,null,null,null,null,null,null,null,null,null,null,null,null,null,null,null,null,null,"Puebla"]
[]
[]
[]
["FORMATO DE IDENTIFICACION DE PROPIETARIO REAL",null,null,null,null,null,null,null,null,null,null,null,null,null,null,null,null,null,null,null,null,null,null,null,null,null,null,null,null,null,null,null,null,"v 4.0"]
["GM Financial de México, S.A. de C.V., Sociedad Financiera de Objeto Múltiple, ER.  Av. Eugenio Garza Lagüera (antes Av. Fundadores) No. 933, Col. Valle Oriente, San Pedro Garza García, Nuevo León. C.P. 66278"]
[]
[null,null,null,null,null,null,null,null,null,null,null,null,null,null,null,null,null,null,null,null,null,null,null,null,null,null,null,null,null,null,null,"PÁGINA 2 DE 2"]
[]
[]
[]
["DECLARACIONES"]
[]
["Manifiesto bajo protesta de decir verdad que:"]
[1,"Certifico que la información proporcionada en este FORMATO es correcta y completa."]
[2,"En caso de que se le llegue a celebrar el Contrato respectivo, me obligo a notificar inmediatamente a GM Financial de México, cualquier cambio en la información proporcionada en este FORMATO y en su caso, en el contrato correspondiente."]
[3,"En el caso del Cliente Persona Moral, en mi carácter de Representante Legal certifico que a la fecha del presente, las personas identificadas en éste documento como Propietarios Reales (según término definido en las Disposiciones de Carácter General a que se refieren los artículos 115 de la Ley de Instituciones de Crédito en relación con el 87-D de la Ley General de Organizaciones y Actividades Auxiliares del Crédito y 95-Bis de éste último ordenamiento, aplicables a las Sociedades Financieras de Objeto Múltiple), mantienen la titularidad de las acciones en circulación representativas del capital social de la(s) sociedad(es) declarada(s) en respectivo Contrato y esto coincide con la información que a la fecha se hace constar en el libro de registro de acciones de la(s) sociedad(es) aquí citadas.\n"]
[4,"En caso de ser Comprador en el proceso de Subasta, manifiesto que para liquidar el Contrato respectivo se hará con recursos lícitos procedentes de la actividad lícita que realiza."]
[5,"AVISO DE PRIVACIDAD:\nGM Financial de México, S.A. de C.V. SOFOM E.R. (en lo sucesivo “GM Financial”) con domicilio en Av. Eugenio Garza Lagüera N° 933, Zona Valle Oriente, San Pedro Garza García, Nuevo León, C.P. 66278 (el “Domicilio”) es el responsable del tratamiento de los datos personales para las siguientes finalidades necesarias: i) Identificarlo; ii) Contactarlo en relación con la participación en la subasta ya sea, para corroborar cierta información o para pedir información adicional; iii) Brindarle acceso a la plataforma que GM Financial pone a su disposición para participar en las subastas de vehículos que se realicen de manera virtual y en línea ya sea para realizar ofertas y comprar vehículos o para ofrecer vehículos de su propiedad en venta por medio de subastas, iv) Llevar a cabo las gestiones necesarias para la subasta del vehículo; v) Participar en las subastas de vehículos y en su caso, realizar la compraventa del vehículo; vi) Realizar labores administrativas relacionadas con la operación de GM Financial, así como aquellas actividades (como auditorías internas o externas) que sean necesarias o convenientes para dicho propósito; vii); Realizar investigaciones para combatir el lavado de dinero, fraudes y cualquier otra actividad ilícita; viii) Cumplir con la legislación aplicable; ix) Realizar monitoreo para cumplimiento de políticas internas, sobre el uso del vehículo posterior a la compra del mismo, (aplica solo en caso de subasta para colaboradores); x) Evaluar la calidad en el servicio respecto de las subastas que se lleven a cabo en la plataforma virtual en línea; y xi) Atender y dar seguimiento a sus dudas, quejas o comentario, en relación con nuestros servicios a través de diversos medios de comunicación tanto físicos como electrónicos (derivado del uso de la conversación que se sostenga por medios electrónicos Chat). Si desea conocer la versión integral del presente Aviso de Privacidad, favor de solicitarlo al correo electrónico portecciondedatos@gmfinancial.com."]
[]
[]
[null,null,"NOMBRE Y FIRMA DEL COMPRADOR O VENDEDOR DE SUBASTAS O REPRESENTANTE LEGAL DEL COMPRADOR O VENDEDOR DE SUBASTAS ",null,null,null,null,null,null,null,null,null,null,null,null,null,null,null,null,null,null,"*",null,null,"FECHA",null,null,null,null,null,null,null,null,null,"*"]
[]
[]
[]
[]
[]
[]
[]
[]
[]
[]
[]
["FORMATO DE IDENTIFICACION DE PROPIETARIO REAL",null,null,null,null,null,null,null,null,null,null,null,null,null,null,null,null,null,null,null,null,null,null,null,null,null,null,null,null,null,null,null,null,"v 3.0"]
["GM Financial de México, S.A. de C.V., Sociedad Financiera de Objeto Múltiple, ER.  Av. Eugenio Garza Lagüera (antes Av. Fundadores) No. 933, Col. Valle Oriente, San Pedro Garza García, Nuevo León. C.P. 66278"]

{"sheet":"Claves","index":1,"n_rows":12,"n_cols":2,"rows_kept":12,"cut":false,"hidden":true,"merged":[]}
[]
[]
[null,"Comprador de Subastas"]
[null,"Representante Legal - Comprador de Subastas"]
[null,"Vendedor de Subastas"]
[null,"Representante Legal - Vendedor de Subastas"]
[]
[null,"SÍ "]
[null,"NO"]
[]
[null,"Sí aplica"]
[null,"No aplica"]

{"sheet":"Macros","index":2,"n_rows":4,"n_cols":30,"rows_kept":4,"cut":false,"hidden":true,"merged":[[1,4,1,12],[1,13,1,14]]}
[]
[null,null,null,null,"DOMICILIO 1: ",null,null,null,null,null,null,null,null,"DOMICILIO 2:"]
["NOMBRE(S)","APELLIDO PATERNO","APELLIDO MATERNO","GENERO:","CALLE","No. EXTERIOR","No. INTERIOR","COLONIA","DELEGACIÓN / MUNICIPIO","CIUDAD / POBLACIÓN","ENTIDAD FEDERATIVA / ESTADO","PAÍS","CÓDIGO POSTAL","Direccion 1","Direccion 2","PAÍS DE NACIMIENTO:","NACIONALIDAD:","ESTADO DE NACIMIENTO:","FECHA DE NACIMIENTO:","RFC (con homoclave):","PERSONA FISICA CON ACTIVIDAD EMPRESARIAL:","CURP:","FIRMA ELECTRÓNICA AVANZADA:","OCUPACIÓN:","PUESTO:","GIRO DEL NEGOCIO ","CORREO ELECTRÓNICO:","TELEFONO:","NOMBRE Y FIRMA ","FECHA"]
[{"$f":"IF(TRIM('Formato de PR'!H10)=\"\", \"\", 'Formato de PR'!H10)","v":""},{"$f":"IF(TRIM('Formato de PR'!B12)=\"\", \"\", 'Formato de PR'!B12)","v":""},{"$f":"IF(TRIM('Formato de PR'!R12)=\"\", \"\", 'Formato de PR'!R12)","v":""},{"$f":"IF(TRIM('Formato de PR'!G14)=\"\", \"\", 'Formato de PR'!G14)","v":""},{"$f":"IF(TRIM('Formato de PR'!E33)=\"\", \"\", 'Formato de PR'!E33)","v":""},{"$f":"IF(TRIM('Formato de PR'!B35)=\"\", \"\", 'Formato de PR'!B35)","v":""},{"$f":"IF(TRIM('Formato de PR'!J35)=\"\", \"\", 'Formato de PR'!J35)","v":""},{"$f":"IF(TRIM('Formato de PR'!B38)=\"\", \"\", 'Formato de PR'!B38)","v":""},{"$f":"IF(TRIM('Formato de PR'!S38)=\"\", \"\", 'Formato de PR'!S38)","v":""},{"$f":"IF(TRIM('Formato de PR'!B40)=\"\", \"\", 'Formato de PR'!B40)","v":""},{"$f":"IF(TRIM('Formato de PR'!B43)=\"\", \"\", 'Formato de PR'!B43)","v":""},{"$f":"IF(TRIM('Formato de PR'!K43)=\"\", \"\", 'Formato de PR'!K43)","v":""},{"$f":"IF(TRIM('Formato de PR'!AB43)=\"\", \"\", 'Formato de PR'!AB43)","v":""},{"$f":"IF(TRIM('Formato de PR'!B49)=\"\", \"\", 'Formato de PR'!B49)","v":""},{"$f":"IF(TRIM('Formato de PR'!B51)=\"\", \"\", 'Formato de PR'!B51)","v":""},{"$f":"IF(TRIM('Formato de PR'!G17)=\"\", \"\", 'Formato de PR'!G17)","v":""},{"$f":"IF(TRIM('Formato de PR'!Z17)=\"\", \"\", 'Formato de PR'!Z17)","v":""},{"$f":"IF(TRIM('Formato de PR'!#REF!)=\"\", \"\", 'Formato de PR'!#REF!)","v":{"$error":"#REF!"}},{"$f":"IF(TRIM('Formato de PR'!Z14)=\"\", \"\", 'Formato de PR'!Z14)","v":""},{"$f":"IF(TRIM('Formato de PR'!G21)=\"\", \"\", 'Formato de PR'!G21)","v":""},null,{"$f":"IF(TRIM('Formato de PR'!T21)=\"\", \"\", 'Formato de PR'!T21)","v":""},{"$f":"IF(TRIM('Formato de PR'!L24)=\"\", \"\", 'Formato de PR'!L24)","v":""},{"$f":"IF(TRIM('Formato de PR'!E27)=\"\", \"\", 'Formato de PR'!E27)","v":""},{"$f":"IF(TRIM('Formato de PR'!W27)=\"\", \"\", 'Formato de PR'!W27)","v":""},{"$f":"IF(TRIM('Formato de PR'!G29)=\"\", \"\", 'Formato de PR'!G29)","v":""},{"$f":"IF(TRIM('Formato de PR'!G31)=\"\", \"\", 'Formato de PR'!G31)","v":""},{"$f":"IF(TRIM('Formato de PR'!AA31)=\"\", \"\", 'Formato de PR'!AA31)","v":""},{"$f":"IF(TRIM('Formato de PR'!C72)=\"\", \"\", 'Formato de PR'!C72)","v":""},{"$f":"IF(TRIM('Formato de PR'!Y72)=\"\", \"\", 'Formato de PR'!Y72)","v":""}]

{"sheet":"Catalogos","index":3,"n_rows":33,"n_cols":7,"rows_kept":33,"cut":false,"hidden":true,"merged":[[0,6,0,14]]}
["StateDesc",null,"Si/No",null,"Genero",null,"STRING DE ELEMENTOS A LIMPIAR"]
["Aguascalientes",null,"Si",null,"Femenino",null,"H6:U6|H10:AH10|B12:P12|R12:AH12|G14:N14|Z14:AD14|G17:R17|Z17:AH17|H19:P19|G21:N21|T21:AH21|L24:AH24|E27:Q27|W27:AH27|G29:AH29|G31:V31|AA31:AH31|E33:AH33|B35:H35|J35:O35|B38:Q38|S38:AH38|B40:Q40|B49:AH49|B51:AH51|C72:U72|Y72:AH72|B43:H43|K43:Z43|AB43:AE43|"]
["Baja California Norte",null,"No",null,"Masculino"]
["Baja California Sur"]
["Campeche"]
["Chiapas"]
["Chihuahua"]
["Coahuila"]
["Colima"]
["Ciudad de Mexico"]
["Durango"]
["Estado de Mexico"]
["Guanajuato"]
["Guerrero"]
["Hidalgo"]
["Jalisco"]
["Michoacan"]
["Morelos"]
["Nayarit"]
["Nuevo Leon"]
["Oaxaca"]
["Puebla"]
["Queretaro"]
["Quintana Roo"]
["San Luis Potosi"]
["Sinaloa"]
["Sonora"]
["Tabasco"]
["Tamaulipas"]
["Tlaxcala"]
["Veracruz"]
["Yucatan"]
["Zacatecas"]